bitfinex-derivatives/quotes_SOLF0:USTF0_20251107
["timestamp","ask_amount","ask_price","bid_price","bid_amount"]
[1762483201617,3.19366903,157.06,157.02,2.22861001]
[1762483201813,3.19366903,157.06,157.02,4.05582827]
[1762483202014,3.19366903,157.06,157.02,9.79052827]
[1762483202215,0.04366903,157.06,157.05,2.18]
[1762483202812,3.15,157.14,157.05,2.18]
[1762483203011,3.15,157.14,157.08,1.82721826]
[1762483203217,7.78230237,157.14,157.08,1.82721826]
[1762483203420,3.15,157.12,157.08,1.82721826]
[1762483203724,3.19668965,157.12,157.08,1.87583403]
[1762483204322,0.04668965,157.12,157.11,2.18]
[1762483204524,0.04668965,157.12,157.1,7.55881826]
[1762483205020,0.04668965,157.12,157.1,9.73881826]
[1762483205720,0.04668965,157.12,157.11,2.18]
[1762483208621,0.04668965,157.12,157.1,1.82721826]
[1762483208818,0.04668965,157.12,157.1,4.00721826]
[1762483209015,0.04668965,157.12,157.1,1.82721826]
[1762483209215,3.19668965,157.12,157.08,1.87583403]
[1762483209420,3.19668965,157.12,157.08,0.04861577]
[1762483210614,7.7795526,157.11,157.08,0.04861577]
[1762483210818,3.13,157.06,157.02,1.82721826]
[1762483211029,3.13,157.06,157.01,2.17]
[1762483211226,3.13,157.06,157.0,7.56261826]
[1762483211824,3.17708545,157.05,157.01,5.77954291]
[1762483212129,3.13,157.12,157.04,2.17]
[1762483212325,3.13,157.1,157.03,1.82721826]
[1762483212525,3.13,157.08,157.04,5.7339]
[1762483213129,3.17563946,157.08,157.04,0.04320577]
[1762483213716,3.13,157.06,157.04,0.04320577]
[1762483214129,0.04563946,157.08,157.05,3.99721826]
[1762483214319,4.65509547,157.1,157.06,2.17]
[1762483214519,3.13,157.26,157.1,2.17]
[1762483214723,4.87114431,157.26,157.22,1.82721826]
[1762483214924,3.13,157.26,157.22,1.82721826]
[1762483215229,3.13,157.35,157.25,2.17]
[1762483215433,3.13,157.35,157.32,1.82721826]
[1762483215631,3.13,157.35,157.32,1.87125995]
[1762483215822,3.13,157.35,157.34,1.82721826]
[1762483216428,3.13,157.35,157.32,0.04404169]
[1762483217832,3.13,157.33,157.24,4.26640644]
[1762483218036,3.13,157.29,157.19,5.7286]
[1762483218243,3.13,157.29,157.2,4.26640644]
[1762483218534,3.13,157.29,157.2,12.20430644]
[1762483218738,3.13,157.29,157.2,6.47640644]
[1762483218936,3.17731999,157.26,157.23,0.04317652]
[1762483219137,3.17731999,157.26,157.23,0.04060202]
[1762483219138,3.17032,157.26,157.23,0.04060202]
[1762483219529,3.13,157.25,157.16,2.21]
[1762483220528,0.0449812,157.22,157.19,0.04382743]
[1762483221042,0.0449812,157.22,157.19,2.25382743]
[1762483221339,0.0449812,157.22,157.19,0.04382743]
[1762483221535,3.1749812,157.22,157.19,0.04382743]
[1762483221737,0.0449812,157.22,157.19,7.98242743]
[1762483221943,0.0449812,157.22,157.2,2.21]
[1762483222136,0.0449812,157.22,157.19,5.77242743]
[1762483222641,0.0449812,157.22,157.19,7.98242743]
[1762483223036,0.0449812,157.22,157.19,2.25382743]
[1762483223542,3.1749812,157.22,157.19,0.04382743]
[1762483226345,3.1749812,157.22,157.11,2.21]
[1762483226346,3.13,157.2,157.11,2.21]
[1762483227144,3.13,157.2,157.11,7.9412]
[1762483227340,0.04284964,157.17,157.14,0.04057549]
[1762483227937,3.17284964,157.17,157.14,0.04057549]
[1762483228838,0.04284964,157.17,157.14,0.04057549]
[1762483229435,3.17284964,157.17,157.14,0.04057549]
[1762483229938,0.04284964,157.17,157.14,0.04057549]
[1762483230140,3.17284964,157.17,157.14,0.04057549]
[1762483235348,3.13,157.16,157.14,0.04057549]
[1762483236242,3.13,157.15,157.14,0.04057549]
[1762483236451,3.13,157.15,157.07,2.21]
[1762483236936,3.13,157.15,157.04,6.47640644]
[1762483237143,3.13,157.14,157.05,2.21]
[1762483237443,0.04195673,157.11,157.08,0.04036169]
[1762483237952,3.07195673,157.11,157.08,0.04036169]
[1762483241454,3.07195673,157.11,157.01,4.26640644]
[1762483241455,2.92,157.09,157.0,2.21]
[1762483241950,2.92,157.09,157.01,2.21]
[1762483242341,2.92,157.13,157.05,7.9435]
[1762483242542,2.96277744,157.11,157.07,0.04047242]
[1762483245446,2.96277744,157.11,157.07,2.25047242]
[1762483245652,2.96277744,157.11,157.07,0.04047242]
[1762483248059,2.96277744,157.11,157.07,5.77337242]
[1762483248462,0.04277744,157.11,157.07,2.25047242]
[1762483248958,0.04277744,157.11,157.1,2.21]
[1762483249166,2.92,157.16,157.1,2.21]
[1762483249662,2.92,157.16,157.07,6.47640644]
[1762483250256,0.04196702,157.13,157.1,0.04820078]
[1762483251262,0.04196702,157.13,157.1,2.25820078]
[1762483251952,0.04196702,157.13,157.11,5.7313]
[1762483252667,0.04196702,157.13,157.11,7.9413]
[1762483254061,0.04196702,157.13,157.11,2.21]
[1762483254267,2.96196702,157.13,157.1,0.04820078]
[1762483254562,0.04196702,157.13,157.1,2.25820078]
[1762483254761,0.04196702,157.13,157.12,2.21]
[1762483256471,0.04196702,157.13,157.1,0.04820078]
[1762483256663,2.96196702,157.13,157.1,0.04820078]
[1762483256863,0.04196702,157.13,157.1,2.25820078]
[1762483257168,0.04196702,157.13,157.11,2.21]
[1762483258460,0.04196702,157.13,157.1,7.99000078]
[1762483258965,0.04196702,157.13,157.11,5.7314]
[1762483259866,0.04196702,157.13,157.11,7.9414]
[1762483260067,0.04196702,157.13,157.11,5.7314]
[1762483260658,0.04196702,157.13,157.11,7.9414]
[1762483260861,0.04196702,157.13,157.12,2.21]
[1762483261363,0.04196702,157.13,157.11,5.7314]
[1762483261866,0.04196702,157.13,157.11,7.9414]
[1762483262063,2.96196702,157.13,157.11,5.7314]
[1762483262364,2.96196702,157.13,157.1,0.04820078]
[1762483262568,0.04196702,157.13,157.03,2.21]
[1762483262761,2.92,157.18,157.1,2.21]
[1762483263463,8.6492,157.18,157.12,5.731]
[1762483263769,15.15726936,157.25,157.12,5.731]
[1762483263770,2.96412086,157.16,157.12,0.04019629]
[1762483263967,2.96516195,157.16,157.12,0.04666986]
[1762483264364,2.92,157.15,157.12,0.04666986]
[1762483264665,2.92,157.14,157.12,0.04666986]
[1762483265262,8.6507,157.14,157.12,0.04666986]
[1762483265470,2.92,157.13,157.12,0.04666986]
[1762483266975,2.92,157.13,157.02,62.0]
[1762483266976,2.92,157.1,157.02,2.21]
[1762483267658,2.92,157.09,157.02,7.9446]
[1762483268062,0.04202829,157.07,157.04,7.98930895]
[1762483268265,0.04202829,157.07,157.04,2.25550895]
[1762483269074,11.4581,157.18,157.04,2.25550895]
[1762483269075,4.78233734,157.14,157.06,2.21]
[1762483269272,2.92,157.16,157.06,2.21]
[1762483269466,7.70262474,157.15,157.08,2.21]
[1762483269667,2.92,157.13,157.05,2.21]
[1762483269866,4.82555878,157.12,157.06,5.7331]
[1762483270067,5.77285258,157.11,157.07,0.04546408]
[1762483270273,2.92,157.1,157.07,0.04546408]
[1762483271069,0.04115258,157.11,157.07,2.25546408]
[1762483271270,3.12115258,157.11,157.07,2.25546408]
[1762483271570,0.04115258,157.11,157.07,2.25546408]
[1762483273874,0.04115258,157.11,157.08,2.21]
[1762483274269,3.12115258,157.11,157.07,0.04546408]
[1762483275075,3.12115258,157.11,157.07,2.25546408]
[1762483276175,3.08,157.1,157.07,0.04546408]
[1762483276478,4.83095965,157.09,157.07,0.04546408]
[1762483276777,5.7333,157.07,157.0,2.21]
[1762483277075,5.7333,157.07,157.01,7.9451]
[1762483277583,0.04450618,157.06,157.02,2.25369423]
[1762483277776,3.12450618,157.06,157.02,2.25369423]
[1762483277977,0.04450618,157.06,157.03,2.21]
[1762483278172,3.12450618,157.06,157.02,0.04369423]
[1762483278376,3.12450618,157.06,157.02,2.25369423]
[1762483278783,3.12450618,157.06,157.02,0.04369423]
[1762483279974,0.04450618,157.06,157.03,2.21]
[1762483280978,0.04450618,157.06,157.03,7.9443]
[1762483281482,0.04450618,157.06,157.05,7.9437]
[1762483281771,3.08,157.11,157.02,2.25369423]
[1762483281979,3.08,157.11,157.02,2.21]
[1762483282369,3.08,157.11,157.04,5.734]
[1762483282578,3.08,157.11,157.04,2.21]
[1762483282772,0.04155798,157.09,157.06,0.04517712]
[1762483282971,0.04155798,157.09,157.06,2.25517712]
[1762483284178,0.04155798,157.09,157.08,2.21]
[1762483285779,3.08,157.15,157.11,2.21]
[1762483286479,3.08,157.15,157.11,7.9414]
[1762483286680,3.12167185,157.15,157.11,7.98369077]
[1762483286880,0.04167185,157.15,157.14,2.21]
[1762483287185,3.08,157.22,157.14,2.21]
[1762483287375,7.90179968,157.21,157.14,2.21]
[1762483287978,3.08,157.2,157.14,2.21]
[1762483288174,3.12762158,157.19,157.15,0.04575382]
[1762483288388,3.12061842,157.19,157.15,0.04840923]
[1762483289880,3.08,157.18,157.15,0.04840923]
[1762483290275,0.04061842,157.19,157.15,7.98830923]
[1762483290580,0.04061842,157.19,157.15,5.77830923]
[1762483290778,3.12061842,157.19,157.15,7.98830923]
[1762483291184,3.12061842,157.19,157.15,2.25840923]
[1762483291673,0.04061842,157.19,157.15,2.25840923]
[1762483291872,0.04061842,157.19,157.15,7.98830923]
[1762483292074,0.04061842,157.19,157.16,2.21]
[1762483292875,0.04061842,157.19,157.18,2.21]
[1762483293984,3.08,157.29,157.21,2.21]
[1762483294580,5.7256,157.28,157.21,2.21]
[1762483294781,3.08,157.29,157.21,2.21]
[1762483295083,3.08,157.29,157.23,2.25372992]
[1762483295084,0.04875956,157.26,157.23,2.25372992]
[1762483296277,3.12875956,157.26,157.23,0.04372992]
[1762483296683,4.40875956,157.26,157.23,0.04372992]
[1762483296985,3.08,157.25,157.23,0.04372992]
[1762483297174,3.08,157.24,157.23,0.04372992]
[1762483297773,3.22,157.22,157.11,65.04]
[1762483297983,3.22,157.22,157.12,2.21]
[1762483298586,3.22,157.22,157.14,2.21]
[1762483298784,0.04316065,157.2,157.16,0.04528796]
[1762483298991,3.26316065,157.2,157.16,0.04528796]
[1762483300688,3.07316065,157.2,157.16,2.25528796]
[1762483301883,3.07316065,157.2,157.16,0.04528796]
[1762483302681,8.80166065,157.2,157.16,0.04528796]
[1762483302994,3.07316065,157.2,157.16,0.04528796]
[1762483303490,3.03,157.17,157.09,2.21]
[1762483303693,3.03,157.17,157.03,2.21]
[1762483303991,3.03,157.13,157.05,7.9435]
[1762483304193,3.03,157.13,157.05,2.21]
[1762483304494,3.07528555,157.11,157.07,0.04081071]
[1762483304689,3.07520644,157.11,157.07,0.04206288]
[1762483309288,3.03,157.1,157.07,0.04206288]
[1762483310298,3.07520644,157.11,157.07,2.25206288]
[1762483310500,3.07520644,157.11,157.07,0.04206288]
[1762483311394,3.03,157.09,157.07,0.04206288]
[1762483311790,3.03,157.09,157.0,7.9454]
[1762483312798,3.03,157.05,157.03,0.04780095]
[1762483312990,3.03,157.05,156.96,2.21]
[1762483313197,3.03,157.05,156.91,2.21]
[1762483313500,3.03,157.0,156.92,5.7384]
[1762483314098,3.0711534,156.98,156.94,0.04620293]
[1762483316199,3.03,156.97,156.94,0.04620293]
[1762483316598,0.0411534,156.98,156.94,2.25620293]
[1762483316804,3.0711534,156.98,156.94,2.25620293]
[1762483316997,0.0411534,156.98,156.94,2.25620293]
[1762483318400,0.0411534,156.98,156.95,2.21]
[1762483318794,3.03,157.04,156.97,2.21]
[1762483319094,3.03,157.04,156.94,4.28675094]
[1762483319399,3.03,157.04,156.94,6.49675094]
[1762483319902,0.04182389,157.01,156.97,0.04301559]
[1762483320290,3.07182389,157.01,156.97,0.04301559]
[1762483320700,3.03,156.99,156.97,0.04301559]
[1762483321201,8.7661,156.99,156.97,0.04301559]
[1762483321499,3.03,156.98,156.9,5.7391]
[1762483322494,3.03,156.98,156.92,0.04844208]
[1762483322701,3.07686954,156.96,156.92,0.04844208]
[1762483323108,3.07686954,156.96,156.92,2.25844208]
[1762483324400,0.04686954,156.96,156.94,2.21]
[1762483325003,0.04686954,156.96,156.94,7.9476]
[1762483325203,0.04686954,156.96,156.94,2.21]
[1762483325406,0.04686954,156.96,156.92,2.25844208]
[1762483325606,3.07686954,156.96,156.92,0.04844208]
[1762483326706,3.07686954,156.96,156.92,7.99674208]
[1762483326909,0.04686954,156.96,156.92,7.99674208]
[1762483327311,3.07686954,156.96,156.92,7.99674208]
[1762483327707,0.04686954,156.96,156.93,7.9479]
[1762483327914,0.04686954,156.96,156.93,2.21]
[1762483328720,0.04686954,156.96,156.92,0.04844208]
[1762483328922,0.04686954,156.96,156.92,2.25844208]
[1762483329127,3.07686954,156.96,156.92,0.04844208]
[1762483329627,3.03,156.94,156.92,0.04844208]
[1762483331025,0.04686954,156.96,156.92,2.25844208]
[1762483332918,0.04686954,156.96,156.92,7.99674208]
[1762483333114,0.04686954,156.96,156.93,2.21]
[1762483333526,0.04686954,156.96,156.95,2.21]
[1762483334125,8.9242,157.04,156.98,2.21]
[1762483334425,5.7354,157.01,156.94,6.49675094]
[1762483334727,5.7354,157.01,156.94,12.23435094]
[1762483335226,0.04860367,156.99,156.96,0.04105878]
[1762483335728,0.04860367,156.99,156.96,2.25105878]
[1762483336926,0.04860367,156.99,156.96,0.04105878]
[1762483337429,3.23860367,156.99,156.96,0.04105878]
[1762483341530,0.04860367,156.99,156.96,2.25105878]
[1762483342137,0.04860367,156.99,156.97,7.9465]
[1762483342536,0.04860367,156.99,156.98,2.21]
[1762483342838,3.19,157.06,157.0,5.7355]
[1762483343048,3.19,157.06,156.98,2.21]
[1762483343338,3.19,157.06,157.01,7.9449]
[1762483343734,0.0418371,157.05,157.02,0.04150177]
[1762483344137,0.0418371,157.05,157.02,5.77610177]
[1762483344639,3.2318371,157.05,157.02,0.04150177]
[1762483345234,0.0418371,157.05,157.02,2.25150177]
[1762483346126,0.0418371,157.05,157.03,7.9443]
[1762483347640,3.2318371,157.05,157.02,0.04150177]
[1762483348934,0.0418371,157.05,157.03,2.21]
[1762483349133,3.19,157.13,157.04,2.21]
[1762483349341,4.83966341,157.12,157.04,2.21]
[1762483349640,3.19,157.13,157.04,2.21]
[1762483349842,4.83894901,157.12,157.04,2.21]
[1762483350136,3.19,157.09,157.06,0.04757827]
[1762483350733,3.23144405,157.1,157.06,2.25757827]
[1762483351138,3.23144405,157.1,157.06,7.99077827]
[1762483351439,3.23144405,157.1,157.06,2.25757827]
[1762483352141,3.19,157.08,157.06,0.04757827]
[1762483353230,3.23144405,157.1,157.06,0.04757827]
[1762483353435,3.19,157.08,157.06,0.04757827]
[1762483356642,3.19,157.07,157.06,0.04757827]
[1762483357544,3.19,157.09,157.06,0.04757827]
[1762483358841,0.04144405,157.1,157.06,2.24757827]
[1762483359040,0.04144405,157.1,157.07,2.2]
[1762483360245,0.04144405,157.1,157.08,7.9323]
[1762483360444,0.04144405,157.1,157.08,2.2]
[1762483361445,3.05144405,157.1,157.06,0.04757827]
[1762483363254,3.01,157.09,157.06,0.04757827]
[1762483365941,8.7424,157.09,157.06,0.04757827]
[1762483366140,3.01,157.08,157.06,0.04757827]
[1762483366752,3.01,157.07,157.06,0.04757827]
[1762483368450,3.01,157.07,156.98,4.28675094]
[1762483368659,3.01,157.05,156.97,2.22]
[1762483369546,3.01,157.02,156.99,0.04256044]
[1762483369745,3.01,157.02,156.99,0.04780596]
[1762483369943,0.04439036,157.03,156.99,2.30780596]
[1762483370655,3.01,157.1,157.02,2.26]
[1762483371653,3.01,157.1,157.03,7.9944]
[1762483371859,0.04342248,157.08,157.04,2.30694206]
[1762483372051,3.05633883,157.08,157.04,2.30694206]
[1762483372250,0.04633883,157.08,157.04,2.30694206]
[1762483372452,0.04633883,157.08,157.05,2.26]
[1762483372950,0.04633883,157.08,157.07,2.26]
[1762483373859,5.7299,157.16,157.1,2.26]
[1762483374349,8.7399,157.16,157.1,7.9917]
[1762483374555,3.01,157.16,157.1,7.9917]
[1762483374955,3.0521568,157.15,157.11,0.04662648]
[1762483379560,3.0521568,157.15,157.11,2.30662648]
[1762483380060,0.0421568,157.15,157.11,8.03792648]
[1762483380255,0.0421568,157.15,157.12,2.26]
[1762483380564,0.0421568,157.15,157.14,2.26]
[1762483380959,3.01,157.21,157.14,3.54]
[1762483381258,3.01,157.21,157.14,2.26]
[1762483381859,0.04157729,157.19,157.16,0.04852201]
[1762483382158,3.01,157.18,157.16,0.04852201]
[1762483382652,0.04157729,157.19,157.16,0.04852201]
[1762483382859,3.05157729,157.19,157.16,0.04852201]
[1762483383053,0.04157729,157.19,157.16,2.30852201]
[1762483383251,3.01,157.24,157.17,2.26]
[1762483383457,3.01,157.29,157.17,2.26]
[1762483383657,4.77747274,157.3,157.18,2.26]
[1762483383658,3.01,157.28,157.18,2.26]
[1762483384156,3.01,157.24,157.21,0.04204242]
[1762483384359,3.01,157.24,157.21,0.04285326]
[1762483384756,7.78747274,157.24,157.21,0.04285326]
[1762483384964,3.01,157.22,157.14,2.26]
[1762483385166,3.01,157.22,157.1,7.28107179]
[1762483385167,3.01,157.21,157.11,2.26]
[1762483385363,3.01,157.18,157.07,12.28]
[1762483385566,3.01,157.18,157.08,2.26]
[1762483385861,3.05802678,157.15,157.11,0.04220815]
[1762483386067,3.05802678,157.15,157.11,0.04807744]
[1762483387761,8.78832678,157.15,157.11,0.04807744]
[1762483387967,3.01,157.14,157.11,0.04807744]
[1762483388666,8.7407,157.14,157.11,0.04807744]
[1762483388869,3.01,157.13,157.11,0.04807744]
[1762483389264,8.7411,157.13,157.11,0.04807744]
[1762483389470,3.01,157.12,157.11,0.04807744]
[1762483390363,3.01,157.14,157.11,0.04807744]
[1762483393075,8.7408,157.14,157.11,0.04807744]
[1762483393371,3.06,157.13,157.11,0.04807744]
[1762483395678,3.06,157.12,157.11,0.04807744]
[1762483398072,3.10802678,157.15,157.11,0.04807744]
[1762483400171,0.04802678,157.15,157.12,2.26]
[1762483400473,3.06,157.22,157.15,7.9899]
[1762483400775,3.06,157.22,157.15,2.26]
[1762483400968,8.7866,157.25,157.18,2.26]
[1762483401368,3.06,157.24,157.2,0.04643198]
[1762483402262,5.7266,157.25,157.2,2.30643198]
[1762483402467,3.06,157.25,157.2,2.30643198]
[1762483402975,8.785,157.29,157.21,2.26]
[1762483403275,3.06,157.28,157.23,0.04883934]
[1762483403669,3.06,157.26,157.23,0.04883934]
[1762483407972,8.7863,157.26,157.23,0.04883934]
[1762483408180,3.06,157.25,157.23,0.04883934]
[1762483409380,3.06,157.32,157.23,2.30883934]
[1762483409576,3.06,157.32,157.23,2.26]
[1762483409881,3.06,157.32,157.26,0.04739093]
[1762483410378,72.16107179,157.31,157.16,2.26]
[1762483410568,3.06,157.29,157.13,2.26]
[1762483410978,3.06,157.23,157.13,2.26]
[1762483411577,3.10761923,157.2,157.16,0.04050195]
[1762483411781,3.10868063,157.2,157.16,0.04159224]
[1762483412078,3.06,157.19,157.16,0.04159224]
[1762483412669,0.04868063,157.2,157.16,2.30159224]
[1762483413881,3.06,157.25,157.16,2.30159224]
[1762483414881,8.05224606,157.25,157.16,2.30159224]
[1762483415077,3.06,157.25,157.16,2.30159224]
[1762483415777,8.7868,157.24,157.16,2.30159224]
[1762483415972,5.89850775,157.29,157.18,0.04741701]
[1762483415973,8.05561403,157.23,157.18,0.04741701]
[1762483416284,3.06,157.21,157.19,0.04510578]
[1762483416486,3.06,157.21,157.18,0.0477416]
[1762483416682,3.06,157.2,157.18,0.0477416]
[1762483418977,8.7885,157.2,157.18,0.0477416]
[1762483419185,3.06,157.18,157.08,2.26]
[1762483420181,0.04031163,157.15,157.11,2.30652557]
[1762483420783,0.04031163,157.15,157.11,8.03782557]
[1762483420973,3.00031163,157.15,157.11,0.04652557]
[1762483421872,0.04031163,157.15,157.11,2.30652557]
[1762483422478,3.00031163,157.15,157.11,2.30652557]
[1762483423380,3.00031163,157.15,157.11,0.04652557]
[1762483424287,0.04031163,157.15,157.13,2.26]
[1762483424677,2.96,157.2,157.13,2.26]
[1762483425780,0.02158339,157.18,157.17,2.26]
[1762483425986,0.02158339,157.19,157.17,2.26]
[1762483426180,0.02158339,157.19,157.17,7.9891]
[1762483427186,0.02158339,157.19,157.18,2.26]
[1762483427783,2.96,157.28,157.22,2.26]
[1762483428290,2.96,157.28,157.23,5.7269]
[1762483428789,2.96,157.28,157.24,0.04137822]
[1762483429494,2.96,157.32,157.24,2.30137822]
[1762483429792,2.96,157.32,157.26,0.04548294]
[1762483430289,2.96,157.32,157.26,5.77138294]
[1762483430598,8.14573315,157.32,157.27,5.7255]
[1762483430794,2.96,157.32,157.27,5.7255]
[1762483431197,2.96,157.32,157.26,0.04548294]
[1762483431799,2.96,157.32,157.26,5.77128294]
[1762483432190,2.96,157.32,157.26,0.04548294]
[1762483432390,5.18017581,157.34,157.26,2.30548294]
[1762483432586,2.96,157.33,157.26,2.30548294]
[1762483432791,2.96,157.32,157.26,0.04548294]
[1762483432997,2.96,157.32,157.27,0.04535932]
[1762483434198,2.96,157.32,157.27,2.30535932]
[1762483434399,2.96,157.32,157.27,0.04535932]
[1762483436295,8.13822807,157.32,157.27,0.04535932]
[1762483436496,2.96,157.32,157.27,0.04535932]
[1762483436696,2.96,157.3,157.27,0.04535932]
[1762483436900,8.13787354,157.3,157.27,0.04535932]
[1762483437093,2.96,157.28,157.27,0.04535932]
[1762483437493,4.24,157.28,157.27,0.04535932]
[1762483437690,2.96,157.27,157.2,5.7282]
[1762483437992,2.96,157.27,157.15,7.28107179]
[1762483437993,2.96,157.25,157.17,2.26]
[1762483438693,0.04535932,157.23,157.19,0.04160946]
[1762483439000,3.00535932,157.23,157.19,0.04160946]
[1762483442004,0.04535932,157.23,157.19,2.30160946]
[1762483442404,3.00535932,157.23,157.19,0.04160946]
[1762483442797,2.96,157.21,157.19,0.04160946]
[1762483443003,8.15310754,157.2,157.19,0.04160946]
[1762483443301,2.96,157.19,157.12,2.26]
[1762483443502,8.15310754,157.18,157.12,2.26]
[1762483443810,2.96,157.16,157.09,7.9922]
[1762483444012,2.96,157.16,157.09,2.26]
[1762483444208,0.04061778,157.14,157.12,2.26]
[1762483444508,0.0438479,157.15,157.12,2.26]
[1762483444807,0.04879917,157.15,157.12,0.04574722]
[1762483444995,0.04879917,157.15,157.12,2.30574722]
[1762483445201,0.04879917,157.15,157.13,7.9905]
[1762483446401,0.04879917,157.15,157.12,0.04574722]
[1762483446606,0.04879917,157.15,157.12,2.30574722]
[1762483449812,3.00879917,157.15,157.12,0.04574722]
[1762483450615,0.04879917,157.15,157.12,2.30574722]
[1762483450798,0.04879917,157.15,157.12,0.04574722]
[1762483452509,0.04879917,157.15,157.12,8.03674722]
[1762483453209,0.04879917,157.15,157.13,7.9906]
[1762483453705,2.98879917,157.15,157.12,0.04574722]
[1762483454500,8.71919917,157.15,157.12,0.04574722]
[1762483454703,2.94,157.13,157.06,64.84]
[1762483454907,2.94,157.11,157.06,64.84]
[1762483455105,2.94,157.11,157.02,2.26]
[1762483455605,0.04473303,157.08,157.05,0.04041032]
[1762483455814,0.04473303,157.08,157.06,5.7333]
[1762483457713,0.04473303,157.08,157.05,0.04041032]
[1762483457914,0.04473303,157.08,157.05,2.30041032]
[1762483458112,0.04473303,157.08,157.06,7.9932]
[1762483458315,0.04473303,157.08,157.07,2.26]
[1762483458515,2.94,157.14,157.07,2.26]
[1762483458919,2.94,157.14,157.1,5.7318]
[1762483459523,2.98471931,157.14,157.1,5.77708751]
[1762483460017,0.04471931,157.14,157.11,7.9914]
[1762483460422,0.04471931,157.14,157.11,5.7314]
[1762483461324,0.04471931,157.14,157.12,7.9911]
[1762483461523,2.94,157.21,157.13,2.26]
[1762483462323,2.94,157.21,157.14,5.7302]
[1762483462524,0.04326366,157.19,157.16,2.30752681]
[1762483464426,2.94,157.27,157.18,2.26]
[1762483464627,2.94,157.25,157.18,2.26]
[1762483465427,2.94,157.25,157.2,0.04633677]
[1762483465826,8.10527893,157.28,157.2,2.30633677]
[1762483466024,2.94,157.28,157.22,0.04249591]
[1762483467023,2.94,157.31,157.24,5.7266]
[1762483467228,2.94,157.31,157.26,0.04896712]
[1762483467435,2.94,157.29,157.26,0.04896712]
[1762483467635,2.94,157.28,157.26,0.04896712]
[1762483467832,4.22,157.28,157.26,0.04896712]
[1762483468028,2.94,157.27,157.26,0.04896712]
[1762483468230,2.94,157.27,157.21,5.7277]
[1762483468428,2.94,157.27,157.19,2.26]
[1762483469334,2.94,157.24,157.21,0.04431166]
[1762483469536,2.94,157.23,157.21,0.0415704]
[1762483470426,2.94,157.23,157.15,12.26343893]
[1762483470427,2.94,157.22,157.13,5.7308]
[1762483471024,2.94,157.22,157.09,2.26]
[1762483471229,2.94,157.19,157.09,6.53333893]
[1762483471433,8.10528677,157.19,157.12,0.04624142]
[1762483471738,0.04029249,157.16,157.12,0.04624142]
[1762483471942,0.04029249,157.16,157.12,2.30624142]
[1762483473542,2.98029249,157.16,157.12,0.04624142]
[1762483475429,2.98029249,157.16,157.12,2.30624142]
[1762483475835,2.98029249,157.16,157.12,0.04624142]
[1762483476233,2.98029249,157.16,157.12,2.30624142]
[1762483476439,2.98029249,157.16,157.12,0.04624142]
[1762483477444,2.98029249,157.16,157.12,5.77714142]
[1762483477639,2.98029249,157.16,157.12,2.30624142]
[1762483477844,0.04029249,157.16,157.12,2.30624142]
[1762483478943,0.04029249,157.16,157.14,5.7303]
[1762483481544,3.18029249,157.16,157.12,5.77734142]
[1762483483542,3.18029249,157.16,157.12,8.03734142]
[1762483485546,3.18029249,157.16,157.12,2.30624142]
[1762483486443,3.14,157.13,157.05,2.26]
[1762483486647,5.18700073,157.12,157.05,2.26]
[1762483486849,5.18868396,157.11,157.05,2.26]
[1762483487050,3.14,157.13,157.05,2.26]
[1762483487241,5.18868232,157.12,157.05,2.26]
[1762483487550,0.04045602,157.1,157.07,2.30350317]
[1762483487851,0.04045602,157.1,157.08,2.26]
[1762483490645,0.04045602,157.1,157.08,7.9924]
[1762483490847,0.04045602,157.1,157.09,2.26]
[1762483491049,3.14,157.19,157.1,2.26]
[1762483491349,8.32249673,157.18,157.12,5.731]
[1762483491544,5.18284217,157.17,157.12,5.731]
[1762483491745,3.14,157.16,157.12,5.731]
[1762483491944,3.14,157.16,157.1,7.9918]
[1762483492251,3.18202431,157.16,157.12,0.04148836]
[1762483492640,3.18202431,157.16,157.12,2.30148836]
[1762483492844,0.04202431,157.16,157.12,2.30148836]